bitfinex/quotes_ETHUSD_20240917
["timestamp","ask_amount","ask_price","bid_price","bid_amount"]
[1726578092339,0.45012371,2323.5,2323.4,0.0381474]
[1726578092535,4.75397371,2323.5,2323.4,0.0381474]
[1726578092744,4.86158998,2323.5,2323.4,0.0381474]
[1726578093042,0.55773998,2323.5,2323.4,0.0381474]
[1726578094424,4.86158998,2323.5,2323.4,0.0381474]
[1726578095248,6.00620898,2323.5,2323.4,0.0381474]
[1726578096849,10.86005898,2323.5,2323.4,0.0381474]
[1726578100941,13.34515898,2323.5,2323.4,0.0381474]
[1726578101775,9.04130898,2323.5,2323.4,0.0381474]
[1726578101948,1.10773998,2323.5,2323.4,0.0381474]
[1726578102157,1.00012371,2323.5,2323.4,0.0381474]
[1726578102781,5.30397371,2323.5,2323.4,0.0381474]
[1726578103307,0.45012371,2323.5,2323.4,0.0381474]
[1726578104900,4.75397371,2323.5,2323.4,0.0381474]
[1726578105503,4.86158965,2323.5,2323.4,0.0381474]
[1726578106397,0.45012371,2323.5,2323.4,0.0381474]
[1726578107413,4.75397371,2323.5,2323.4,0.0381474]
[1726578107980,0.45012371,2323.5,2323.4,0.0381474]
[1726578108383,4.75397371,2323.5,2323.4,0.0381474]
[1726578108685,0.45012371,2323.5,2323.4,0.0381474]
[1726578113838,0.45012371,2323.5,2323.4,4.3421774]
[1726578114253,0.45012371,2323.5,2323.4,8.6462074]
[1726578114593,0.45012371,2323.5,2323.4,4.3421774]
[1726578114826,0.45012371,2323.5,2323.4,0.0381474]
[1726578115099,0.45012371,2323.5,2323.4,4.3421774]
[1726578116596,0.45012371,2323.5,2323.4,0.0381474]
[1726578117296,0.55772752,2323.5,2323.4,0.0381474]
[1726578118511,0.45012371,2323.5,2323.4,0.0381474]
[1726578118698,0.55772734,2323.5,2323.4,0.0381474]
[1726578120513,10.86711407,2323.5,2323.4,0.0381474]
[1726578120833,12.08722734,2323.5,2323.4,0.0381474]
[1726578121253,0.45012371,2323.5,2323.4,0.0381474]
[1726578121415,4.75397371,2323.5,2323.4,0.0381474]
[1726578121612,0.45012371,2323.5,2323.4,0.0381474]
[1726578123648,10.31354065,2323.5,2323.4,0.0381474]
[1726578123852,12.15473346,2323.5,2323.4,0.0381474]
[1726578139983,15.15473346,2323.5,2323.4,0.0381474]
[1726578151200,19.45858346,2323.5,2323.4,0.0381474]
[1726578152101,4.3051,2322.9,2322.6,1.54067967]
[1726578152335,0.10763448,2322.8,2322.6,1.54067967]
[1726578153210,0.55775799,2322.8,2322.6,1.54067967]
[1726578153382,0.45012351,2322.8,2322.6,1.54067967]
[1726578156604,4.41303435,2322.7,2322.6,1.54067967]
[1726578156980,1.02448014,2322.7,2322.0,4.7764774]
[1726578157177,1.02448014,2322.7,2322.4,1.54067967]
[1726578157178,4.30552,2322.6,2322.4,1.54067967]
[1726578157487,4.41300435,2322.7,2322.4,1.54067967]
[1726578158302,4.41300435,2322.7,2322.6,1.54067967]
[1726578158642,5.76821479,2322.7,2322.6,1.54067967]
[1726578159447,5.87586256,2322.7,2322.6,1.54067967]
[1726578160200,5.76821479,2322.7,2322.6,1.54067967]
[1726578160641,0.45012351,2322.8,2322.6,1.54067967]
[1726578160797,0.45012351,2322.8,2322.7,4.30533]
[1726578161526,0.45012351,2322.8,2322.6,5.84608967]
[1726578161700,7.04807351,2322.8,2322.2,4.30615]
[1726578161906,4.41305353,2322.7,2322.4,3.33971806]
[1726578162748,4.41306353,2322.7,2322.4,3.33971806]
[1726578162918,0.10764353,2322.7,2322.4,3.33971806]
[1726578163948,4.41303353,2322.7,2322.4,3.33971806]
[1726578164125,0.10764353,2322.7,2322.4,3.33971806]
[1726578164452,4.41305353,2322.7,2322.4,3.33971806]
[1726578164613,5.4516427,2322.6,2322.4,3.33971806]
[1726578164815,5.55929304,2322.6,2322.4,3.33971806]
[1726578167936,5.4516427,2322.6,2322.4,3.33971806]
[1726578168140,4.30553,2322.6,2322.4,3.33971806]
[1726578168922,6.67095132,2322.5,2322.0,3.37786546]
[1726578169546,6.67095132,2322.5,2322.2,3.33971806]
[1726578169964,0.45015064,2322.4,2322.2,3.33971806]
[1726578170935,4.75605064,2322.4,2322.2,3.33971806]
[1726578171223,0.55780425,2322.4,2322.2,3.33971806]
[1726578172566,0.45015064,2322.4,2322.2,3.33971806]
[1726578176131,4.75605064,2322.4,2322.0,7.68445546]
[1726578176459,0.55780451,2322.4,2322.2,3.33971806]
[1726578176835,0.45015064,2322.4,2322.2,3.33971806]
[1726578177675,4.75606064,2322.4,2322.2,3.33971806]
[1726578177871,4.86371454,2322.4,2322.2,3.33971806]
[1726578180209,6.00642599,2322.4,2322.2,3.33971806]
[1726578180919,5.89877209,2322.4,2322.2,3.33971806]
[1726578181227,4.30607,2322.3,2322.0,3.37786546]
[1726578181439,4.41372806,2322.3,2322.0,3.37786546]
[1726578182088,4.75607064,2322.4,2322.0,3.37786546]
[1726578182901,4.75607064,2322.4,2322.2,3.33971806]
[1726578184032,4.75607064,2322.4,2322.3,1.54162215]
[1726578186087,5.99567551,2322.4,2322.1,1.54162215]
[1726578186292,4.30607,2322.3,2322.1,1.54162215]
[1726578186518,0.10765881,2322.3,2322.1,1.54162215]
[1726578186719,0.45015064,2322.4,2322.1,1.54162215]
[1726578186922,0.45015064,2322.4,2322.3,5.84769215]
[1726578187442,0.45015064,2322.4,2322.3,1.54162215]
[1726578188953,14.24915,2322.9,2322.4,4.30588]
[1726578189116,4.30517,2322.8,2322.7,1.54162215]
[1726578189445,4.3054,2322.7,2322.5,1.54162215]
[1726578191059,4.30517,2322.8,2322.5,1.54162215]
[1726578191204,0.675927,2322.7,2322.5,1.54162215]
[1726578191533,4.30517,2322.8,2322.5,1.54162215]
[1726578192525,8.61045,2322.8,2322.5,1.54162215]
[1726578192728,4.30517,2322.8,2322.5,1.54162215]
[1726578193161,4.30504,2322.9,2322.7,1.54162215]
[1726578193536,4.30468,2323.1,2322.7,1.54162215]
[1726578193736,6.78891,2323.2,2322.9,1.54162215]
[1726578193944,6.78891,2323.2,2323.1,1.54162215]
[1726578194147,6.89653523,2323.2,2323.1,1.54162215]
[1726578194333,6.89653523,2323.2,2322.9,1.54162215]
[1726578194861,6.78891,2323.2,2322.9,1.54162215]
[1726578195275,6.78891,2323.2,2323.1,1.54162215]
[1726578195443,8.647226,2323.2,2323.1,1.54162215]
[1726578196468,2.3199,2323.4,2323.1,1.54162215]
[1726578196628,2.3199,2323.4,2323.3,1.54162215]
[1726578197671,4.30389,2323.5,2323.3,1.54162215]
[1726578197970,6.64027,2323.6,2323.3,1.54162215]
[1726578198142,10.94411,2323.6,2323.3,1.54162215]
[1726578198343,8.483641,2323.6,2323.3,1.54162215]
[1726578198545,12.787411,2323.6,2323.3,1.54162215]
[1726578198763,4.30385,2323.5,2323.3,1.54162215]
[1726578199371,2.4015,2323.3,2322.8,4.30501]
[1726578199536,4.30476,2323.1,2322.6,4.30534]
[1726578199737,4.30476,2323.1,2322.7,1.54162215]
[1726578199944,4.30476,2323.1,2322.9,1.54162215]
[1726578200356,0.10762752,2323.0,2322.9,1.54162215]
[1726578201092,4.30469,2323.1,2322.9,1.54162215]
[1726578201297,5.44052273,2323.1,2322.9,1.54162215]
[1726578201994,5.44052273,2323.1,2322.8,3.33835784]
[1726578202193,1.13583273,2323.1,2322.8,3.33835784]
[1726578202501,4.30467,2323.1,2322.8,3.33835784]
[1726578202923,4.41229831,2323.1,2322.8,3.33835784]
[1726578203779,4.30467,2323.1,2322.8,3.33835784]
[1726578203981,4.54466,2323.2,2322.8,3.33835784]
[1726578204206,8.95685659,2323.2,2322.8,3.33835784]
[1726578204384,5.44042566,2323.1,2322.8,3.33835784]
[1726578204821,5.54805387,2323.1,2322.8,3.33835784]
[1726578206207,5.44042566,2323.1,2322.8,3.33835784]
[1726578206715,5.54805381,2323.1,2322.8,3.33835784]
[1726578206920,6.67922,2323.0,2322.6,7.64374784]
[1726578207092,2.48202813,2323.0,2322.7,4.30531]
[1726578207303,2.3744,2323.0,2322.7,4.30531]
[1726578207641,2.3744,2323.0,2322.8,3.33835784]
[1726578207823,5.44042566,2323.1,2322.8,3.33835784]
[1726578208359,2.72217811,2323.2,2323.0,3.33835784]
[1726578208504,6.91899,2323.2,2323.0,3.33835784]
[1726578209000,4.30491,2323.0,2322.8,3.33835784]
[1726578209206,4.30491,2323.0,2322.6,7.64376784]
[1726578209445,4.30463,2323.1,2322.6,7.64376784]
[1726578209602,4.41226174,2323.1,2322.6,11.94914784]
[1726578210423,4.30463,2323.1,2322.8,3.33835784]
[1726578210836,6.67883,2323.2,2323.0,3.33835784]
[1726578211146,2.3729,2323.4,2323.0,3.33835784]
[1726578211300,6.78465588,2323.4,2323.0,7.64302784]
[1726578211503,6.67704,2323.4,2323.0,3.33835784]
[1726578211702,12.89539947,2323.4,2323.0,3.33835784]
[1726578212141,4.30423,2323.3,2323.0,3.33835784]
[1726578212449,4.30428,2323.3,2323.0,3.33835784]
[1726578213519,6.67696,2323.4,2323.0,7.64312784]
[1726578213723,6.78457584,2323.4,2323.0,7.64312784]
[1726578213923,6.67696,2323.4,2323.0,7.64312784]
[1726578214138,6.67696,2323.4,2323.0,3.33835784]
[1726578214453,4.30422,2323.3,2323.0,3.33835784]
[1726578214748,0.45022259,2323.3,2323.0,7.64312784]
[1726578214910,0.45022259,2323.3,2323.0,7.64303784]
[1726578215148,0.45022259,2323.3,2323.2,3.33835784]
[1726578215550,0.45022259,2323.3,2323.0,7.64295784]
[1726578216455,0.45022259,2323.3,2323.1,4.30458]
[1726578218054,0.45022259,2323.3,2323.2,7.64275784]
[1726578218277,0.45022259,2323.3,2323.2,11.94715784]
[1726578218492,0.45022259,2323.3,2323.2,13.14187362]
[1726578218870,6.72027,2323.8,2323.4,4.30397]
[1726578219211,6.72027,2323.8,2323.5,3.33835784]
[1726578219794,2.4169,2323.8,2323.5,7.64211784]
[1726578220095,4.75335983,2323.9,2323.7,3.33835784]
[1726578220401,1.59086181,2323.9,2323.7,3.33835784]
[1726578220784,5.89404181,2323.9,2323.7,3.33835784]
[1726578221310,1.59086181,2323.9,2323.7,3.33835784]
[1726578221499,0.45024983,2323.9,2323.7,3.33835784]
[1726578222778,4.30293,2324.0,2323.7,3.33835784]
[1726578223376,4.30275,2324.1,2323.7,3.33835784]
[1726578223668,4.30275,2324.1,2323.7,7.64183784]
[1726578224029,7.18444849,2324.2,2323.9,3.33835784]
[1726578224170,9.08212534,2324.2,2323.9,3.33835784]
[1726578224511,2.88188849,2324.2,2324.1,3.33835784]
[1726578224673,0.45028849,2324.2,2324.1,3.33835784]
[1726578227667,0.45028849,2324.2,2323.9,3.33835784]
[1726578228497,4.75284849,2324.2,2323.9,3.33835784]
[1726578229321,0.45028849,2324.2,2323.7,3.33835784]
[1726578229615,2.4401,2324.1,2323.5,3.33835784]
[1726578229787,4.30301,2324.0,2323.5,3.33835784]
[1726578229987,4.4105917,2324.0,2323.6,4.30365]
[1726578230514,6.77411,2323.8,2323.5,3.33835784]
[1726578230723,2.4707,2323.8,2323.5,3.33835784]
[1726578231982,6.77403,2323.8,2323.5,3.33835784]
[1726578232483,2.4707,2323.8,2323.5,3.33835784]
[1726578234138,2.4707,2323.8,2323.7,3.33835784]
[1726578235239,4.30314,2323.9,2323.7,3.33835784]
[1726578235395,5.5241445,2323.9,2323.7,3.33835784]
[1726578236048,1.2210045,2323.9,2323.7,3.33835784]
[1726578237205,6.74654,2324.0,2323.7,3.33835784]
[1726578238251,4.30319,2323.9,2323.5,7.64218784]
[1726578238429,4.75345482,2323.9,2323.5,7.64218784]
[1726578238629,4.75345482,2323.9,2323.5,7.64212784]
[1726578238835,4.75345482,2323.9,2323.5,11.94590784]
[1726578239013,4.75345482,2323.9,2323.7,3.33835784]
[1726578239543,0.45026482,2323.9,2323.7,3.33835784]
[1726578240408,0.45026482,2323.9,2323.7,7.64180784]
[1726578240946,0.45026482,2323.9,2323.7,3.33835784]
[1726578243447,0.45026482,2323.9,2323.7,7.64181784]
[1726578243645,0.45026482,2323.9,2323.8,4.30329]
[1726578243804,0.45026482,2323.9,2323.8,5.49780078]
[1726578244301,7.07597482,2323.9,2323.5,7.64220784]
[1726578244539,7.07591482,2323.9,2323.5,7.64217784]
[1726578246019,7.07591482,2323.9,2323.7,1.53973365]
[1726578249217,4.30329,2323.8,2323.5,1.53973365]
[1726578249653,2.3513,2323.6,2323.5,1.53973365]
[1726578250166,6.65496,2323.6,2323.5,1.53973365]
[1726578250320,2.3513,2323.6,2323.5,1.53973365]
[1726578251729,4.30392,2323.5,2323.1,4.30454]
[1726578251940,4.30392,2323.5,2323.3,1.53973365]
[1726578252545,4.41152241,2323.5,2323.3,1.53973365]
[1726578253835,4.86176423,2323.5,2323.3,1.53973365]
[1726578255149,4.75416182,2323.5,2323.3,1.53973365]
[1726578255669,5.90582824,2323.5,2323.3,1.53973365]
[1726578255830,6.64823,2323.4,2323.3,1.53973365]
[1726578256036,6.75583672,2323.4,2323.3,1.53973365]
[1726578256568,2.3442,2323.4,2323.3,1.53973365]
[1726578256788,0.45024182,2323.5,2323.3,1.53973365]
[1726578257449,4.75421182,2323.5,2323.3,1.53973365]
[1726578257659,4.30403,2323.4,2323.3,1.53973365]
[1726578257868,5.48300362,2323.5,2323.3,1.53973365]
[1726578259149,4.30403,2323.4,2323.3,1.53973365]
[1726578259367,6.74803,2323.4,2323.3,1.53973365]
[1726578259577,11.05206,2323.4,2323.3,1.53973365]
[1726578259854,4.3043,2323.3,2323.1,1.53973365]
[1726578260079,7.97113936,2323.4,2323.1,1.53973365]
[1726578260283,6.74803,2323.4,2323.3,1.53973365]
[1726578260777,4.30431,2323.3,2323.1,1.53973365]
[1726578261146,4.41186444,2323.3,2323.1,1.53973365]
[1726578261348,8.60857,2323.3,2323.1,1.53973365]
[1726578261575,4.3044,2323.2,2323.1,1.53973365]
[1726578261761,4.30424,2323.3,2323.1,1.53973365]
[1726578266974,6.74803,2323.4,2323.1,1.53973365]
[1726578266975,6.74807,2323.4,2323.1,1.53973365]
[1726578267191,2.444,2323.4,2323.3,1.53973365]
[1726578267392,6.74803,2323.4,2323.3,1.53973365]
[1726578268515,11.05225,2323.4,2323.1,1.53973365]
[1726578268662,4.30423,2323.3,2323.1,1.53973365]
[1726578268864,6.5687,2323.2,2323.1,1.53973365]
[1726578269098,6.5687,2323.2,2322.9,1.53973365]
[1726578269295,4.30465,2323.1,2322.7,4.30528]
[1726578269607,4.75493237,2323.1,2322.8,1.53973365]
[1726578269807,0.45028237,2323.1,2322.8,5.84487365]
[1726578270165,4.75498237,2323.1,2322.8,1.53973365]
[1726578270502,2.4778,2322.8,2322.6,1.53973365]
[1726578271202,4.30542,2322.7,2322.3,4.30591]
[1726578271392,4.41305321,2322.7,2322.4,1.53973365]
[1726578271631,2.4565,2322.6,2322.4,1.53973365]
[1726578271835,2.4565,2322.6,2322.2,1.53973365]
[1726578271836,4.3057,2322.5,2322.2,1.53973365]
[1726578272144,4.41335182,2322.5,2322.2,1.53973365]
[1726578272509,4.3057,2322.5,2322.2,1.53973365]
[1726578272716,4.3057,2322.5,2322.4,1.53973365]
[1726578274160,4.3057,2322.5,2322.2,3.34026141]
[1726578274713,11.06765,2322.6,2322.2,3.34026141]
[1726578274901,12.174415,2322.6,2322.2,3.34026141]
[1726578275407,4.30574,2322.5,2322.2,3.34026141]
[1726578275637,4.41339168,2322.5,2322.2,3.34026141]
[1726578275832,8.71923168,2322.5,2322.2,3.34026141]
[1726578276039,4.41339168,2322.5,2322.2,3.34026141]
[1726578276234,5.64160135,2322.5,2322.2,3.34026141]
[1726578276640,5.64160135,2322.5,2322.0,8.6512074]
[1726578276641,5.64160135,2322.5,2322.0,7.68493881]
[1726578276951,6.64227,2322.4,2322.0,7.68493881]
[1726578277111,6.7499264,2322.4,2322.0,7.68493881]
[1726578277851,6.64227,2322.4,2322.0,7.68493881]
[1726578278040,6.64227,2322.4,2322.2,3.34026141]
[1726578278343,2.3363,2322.4,2322.2,3.34026141]
[1726578278710,7.30553,2322.6,2322.2,3.34026141]
[1726578278925,9.80313,2322.6,2322.2,7.64651141]
[1726578279219,2.4976,2322.8,2322.4,3.34026141]
[1726578279424,6.80288,2322.8,2322.6,3.34026141]
[1726578280617,2.4976,2322.8,2322.6,3.34026141]
[1726578281327,6.80275,2322.8,2322.6,3.34026141]
[1726578284995,7.25303199,2322.8,2322.6,3.34026141]
[1726578286778,2.94788199,2322.8,2322.6,3.34026141]
[1726578287413,7.25311199,2322.8,2322.4,7.64607141]
[1726578287615,8.40892819,2322.8,2322.4,3.34026141]
[1726578288426,7.25311199,2322.8,2322.4,3.34026141]
[1726578293012,7.25311199,2322.8,2322.4,7.64614141]
[1726578293523,2.94788199,2322.8,2322.6,3.34026141]
[1726578293708,7.25304199,2322.8,2322.6,3.34026141]
[1726578293892,2.94788199,2322.8,2322.6,3.34026141]
[1726578294095,0.45028199,2322.8,2322.6,3.34026141]
[1726578295889,0.45028199,2322.8,2322.6,7.64571141]
[1726578296085,0.45028199,2322.8,2322.7,4.30533]
[1726578296694,0.45028199,2322.8,2322.6,8.41029255]
[1726578298229,0.45028199,2322.8,2322.6,12.71567255]
[1726578298903,0.45028199,2322.8,2322.6,8.41021255]
[1726578299103,0.45028199,2322.8,2322.6,7.64564141]
[1726578301194,0.45028199,2322.8,2322.6,3.34026141]
[1726578301936,4.75556199,2322.8,2322.6,3.34026141]
[1726578302144,2.2578,2322.7,2322.4,7.64613141]
[1726578302325,2.2578,2322.7,2322.6,3.34026141]
[1726578303511,0.45028199,2322.8,2322.6,3.34026141]
[1726578303916,0.45028199,2322.8,2322.7,1.54102309]
[1726578305040,4.75542199,2322.8,2322.7,1.54102309]
[1726578306306,9.06056199,2322.8,2322.7,1.54102309]
[1726578306543,5.90982819,2322.8,2322.7,1.54102309]
[1726578308304,0.45028199,2322.8,2322.7,1.54102309]
[1726578309671,0.45028199,2322.8,2322.7,10.15168309]
[1726578309982,0.45028199,2322.8,2322.7,11.94834254]
[1726578310771,0.45028199,2322.8,2322.7,19.25367254]
[1726578310979,0.45028199,2322.8,2322.7,22.37988789]
[1726578311180,0.45028199,2322.8,2322.7,25.09180214]
[1726578311487,2.3791,2323.1,2322.9,4.30484]
[1726578311775,10.98778,2323.3,2323.0,3.33768254]
[1726578311935,4.30442,2323.2,2323.0,3.33768254]
[1726578312144,7.83797251,2323.3,2323.0,3.33768254]
[1726578312337,3.53366251,2323.3,2323.0,3.33768254]
[1726578312532,2.9462392,2323.5,2323.2,3.33768254]
[1726578312835,2.9462392,2323.5,2323.2,7.64207254]
[1726578312982,2.9462392,2323.5,2323.4,3.33768254]
[1726578313296,2.496,2323.8,2323.4,7.64171254]
[1726578313443,2.94620686,2323.8,2323.7,3.33768254]
[1726578313650,8.40474155,2323.8,2323.7,3.33768254]
[1726578313951,8.40474155,2323.8,2323.5,3.33768254]
[1726578314788,8.40484155,2323.8,2323.5,3.33768254]
[1726578319177,4.10145155,2323.8,2323.5,3.33768254]
[1726578319388,7.24957686,2323.8,2323.5,3.33768254]
[1726578319896,4.30351,2323.7,2323.3,3.33768254]
[1726578320070,2.4676,2323.6,2323.3,3.33768254]
[1726578320405,2.4676,2323.6,2323.3,7.64187254]
[1726578320753,2.4676,2323.6,2323.5,3.33768254]
[1726578323917,2.4676,2323.6,2323.3,7.64187254]
[1726578324272,6.77129,2323.6,2323.3,3.33768254]
[1726578324700,7.92378669,2323.6,2323.1,7.64224254]
[1726578324907,2.3441,2323.4,2323.1,7.64224254]
[1726578325371,2.3441,2323.4,2323.1,11.94667254]
[1726578325888,2.3441,2323.4,2323.1,7.64211254]
[1726578326209,2.3441,2323.4,2323.1,11.94663254]
[1726578326578,2.3441,2323.4,2323.1,7.64211254]
[1726578327076,2.3441,2323.4,2323.1,11.94661254]
[1726578327274,2.3441,2323.4,2323.3,3.33768254]
[1726578328878,2.79435647,2323.4,2323.3,3.33768254]
[1726578330118,2.79435647,2323.4,2323.1,7.64211254]
[1726578330999,7.09841647,2323.4,2323.1,3.33768254]
[1726578331173,7.09841647,2323.4,2323.0,4.30469]
[1726578332235,4.30433,2323.3,2322.9,7.64256254]
[1726578332451,7.09845647,2323.4,2323.1,3.33768254]
[1726578332738,11.40261647,2323.4,2323.1,3.33768254]
[1726578332937,4.30422,2323.3,2323.1,3.33768254]
[1726578333151,8.23871812,2323.4,2323.1,3.33768254]
[1726578333442,2.79435647,2323.4,2323.1,7.64224254]
[1726578334806,7.09841647,2323.4,2323.1,7.64224254]
[1726578335225,2.79435647,2323.4,2323.1,7.64219254]
[1726578335390,7.09839647,2323.4,2323.1,7.64219254]
[1726578337502,2.79435647,2323.4,2323.1,7.64218254]
[1726578337942,2.79435647,2323.4,2323.1,11.94670254]
[1726578338103,2.79435647,2323.4,2323.1,7.64218254]
[1726578338543,2.79435647,2323.4,2323.2,4.30439]
[1726578339940,2.79435647,2323.4,2323.3,1.54024377]
[1726578341600,0.45025647,2323.4,2323.3,1.54024377]
[1726578344207,0.45025647,2323.4,2323.3,5.84446377]
[1726578344407,0.45025647,2323.4,2323.3,6.86794617]
[1726578344645,0.45025647,2323.4,2323.3,11.25824562]
[1726578344956,0.45025647,2323.4,2323.3,11.17216617]
[1726578347757,0.45025647,2323.4,2323.3,15.47638617]
[1726578348252,0.45025647,2323.4,2323.3,16.72685815]
[1726578348461,2.4079,2324.0,2323.7,4.30338]
[1726578348755,6.64963,2324.2,2323.9,1.54024377]
[1726578349046,4.30274,2324.1,2323.9,1.54024377]
[1726578350164,2.47,2324.0,2323.9,1.54024377]
[1726578350405,2.47,2324.0,2323.7,1.54024377]
[1726578350529,6.77304,2324.0,2323.7,1.54024377]
[1726578359397,7.880618,2324.0,2323.7,1.54024377]
[1726578359560,6.78709,2323.9,2323.7,1.54024377]
[1726578359765,2.4839,2323.8,2323.5,4.30375]
[1726578359989,2.4839,2323.8,2323.6,1.54024377]
[1726578360299,6.78502454,2323.8,2323.4,4.30393]
[1726578360502,5.53383938,2323.8,2323.5,1.54024377]
[1726578360708,5.53383938,2323.8,2323.3,5.84442377]
[1726578360709,4.41116546,2323.7,2323.3,5.84442377]
[1726578361073,0.10759546,2323.7,2323.3,5.84442377]
[1726578361708,4.30352,2323.7,2323.3,1.54024377]
[1726578361890,4.30368,2323.6,2323.3,1.54024377]
[1726578362060,4.30368,2323.6,2323.0,5.84499377]
[1726578362061,4.30406,2323.4,2323.0,5.84499377]
[1726578362262,0.10761078,2323.4,2323.2,1.54024377]
[1726578362457,4.41169078,2323.4,2323.2,1.54024377]
[1726578363276,2.3571,2323.3,2323.2,1.54024377]
[1726578363874,2.80735969,2323.3,2323.2,1.54024377]
[1726578365896,2.3571,2323.3,2323.2,1.54024377]
[1726578369330,2.4911,2323.5,2323.3,4.3042]
[1726578369551,2.4911,2323.5,2323.4,1.54024377]
[1726578369761,6.7401,2323.8,2323.4,5.84427377]
[1726578370053,6.7401,2323.8,2323.6,1.54024377]
[1726578370054,2.4368,2323.8,2323.6,1.54024377]
[1726578370559,2.4368,2324.0,2323.6,5.84380377]
[1726578370855,6.73972,2324.0,2323.9,1.54024377]
[1726578371066,8.592974,2324.0,2323.9,1.54024377]
[1726578371356,8.592974,2324.0,2323.7,1.54024377]
[1726578371527,9.04318577,2324.0,2323.7,1.54024377]
[1726578371918,9.04318577,2324.0,2323.6,11.94316578]
[1726578372150,7.18993177,2324.0,2323.6,11.94316578]
[1726578372352,7.18993177,2324.0,2323.6,11.94314578]
[1726578372531,2.88701177,2324.0,2323.7,4.30345]
[1726578373354,2.88701177,2324.0,2323.8,3.33600578]
[1726578373559,2.88701177,2324.0,2323.8,7.63913578]
[1726578373744,0.45021177,2324.0,2323.8,7.63913578]
[1726578374532,0.45021177,2324.0,2323.9,5.07562998]
[1726578374860,2.3351,2324.3,2323.9,5.07562998]
[1726578375057,6.63749,2324.3,2324.0,3.33600578]
[1726578375528,2.3351,2324.3,2324.0,7.63891578]
[1726578375724,2.3351,2324.3,2324.0,3.33600578]
[1726578375955,6.63748,2324.3,2324.0,3.33600578]
[1726578376464,2.3351,2324.3,2324.0,3.33600578]
[1726578376766,2.3351,2324.3,2324.2,3.33600578]
[1726578377723,2.3351,2324.3,2324.0,3.33600578]
[1726578377983,6.63747,2324.3,2324.0,3.33600578]
[1726578378359,2.4094,2324.2,2323.9,4.30302]
[1726578379075,2.4094,2324.2,2323.9,4.303]
[1726578379223,2.4094,2324.2,2324.0,3.33600578]
[1726578379561,2.4094,2324.2,2323.9,4.30308]
[1726578380765,2.4094,2324.2,2324.0,3.33600578]
[1726578380929,2.4094,2324.2,2324.0,7.63891578]
[1726578381671,2.4094,2324.2,2324.0,3.33600578]
[1726578384336,2.4094,2324.2,2324.0,7.63891578]
[1726578385693,2.4094,2324.2,2323.8,4.30329]
[1726578385694,2.4094,2324.2,2323.9,4.30306]
[1726578386335,2.4094,2324.2,2323.9,3.85285592]
[1726578387786,7.85841127,2324.2,2323.8,4.30322]
[1726578388078,7.85841127,2324.2,2323.8,11.94235578]
[1726578388457,3.55582127,2324.2,2323.9,4.30307]
[1726578388999,2.4389,2324.1,2323.8,7.63929578]
[1726578389283,3.23845802,2324.1,2323.8,7.63929578]
[1726578389494,3.23845802,2324.1,2323.9,4.30308]
[1726578389495,2.4389,2324.1,2323.9,4.30308]
[1726578389776,2.4389,2324.1,2324.0,3.33600578]
[1726578389980,6.74127,2324.3,2324.0,3.33600578]
[1726578390275,4.30256,2324.2,2323.8,7.63920578]
[1726578390503,2.3065,2324.1,2323.8,7.63920578]
[1726578390781,6.60926,2324.1,2323.8,3.33600578]
[1726578390972,2.4395,2323.9,2323.6,7.63950578]
[1726578391283,2.4395,2323.9,2323.6,4.3035]
[1726578391653,4.30329,2323.8,2323.4,7.63993578]
[1726578391869,2.3727,2323.7,2323.4,7.63993578]
[1726578392050,2.3727,2323.7,2323.5,1.54006024]
[1726578394093,2.3727,2323.7,2323.4,7.640549]
[1726578395693,6.67619,2323.7,2323.3,4.30414]
[1726578395855,4.30366,2323.6,2323.2,7.640959]
[1726578396271,2.4376,2323.4,2323.0,7.641329]
[1726578396508,4.41185112,2323.3,2322.9,4.30493]
[1726578396816,2.446,2323.2,2322.8,11.946669]
[1726578397097,2.446,2323.2,2322.8,7.641609]
[1726578399794,2.446,2323.2,2323.0,7.641269]
[1726578400597,2.446,2323.2,2323.0,11.945959]
[1726578400783,2.446,2323.2,2323.0,7.641259]
[1726578401877,2.446,2323.2,2323.0,7.641359]
[1726578402200,2.446,2323.2,2323.0,11.946039]
[1726578402410,2.446,2323.2,2323.1,4.30459]
[1726578402560,2.446,2323.2,2323.0,3.336589]
[1726578402900,2.446,2323.2,2323.0,7.641319]
[1726578403808,2.446,2323.2,2323.0,11.945939]
[1726578404166,2.446,2323.2,2323.1,4.30459]
[1726578406104,4.30388,2323.5,2323.1,4.30459]
[1726578406105,2.257,2323.5,2323.1,4.30459]
[1726578406267,6.56089,2323.5,2323.2,3.336589]
[1726578406805,7.947349,2323.5,2323.2,3.336589]
[1726578408108,7.947409,2323.5,2323.2,3.336589]
[1726578409408,2.2719,2323.4,2323.1,4.3045]
[1726578409701,6.57595,2323.4,2323.1,4.3045]
[1726578410073,2.2719,2323.4,2323.2,3.336589]
[1726578410868,2.2719,2323.4,2323.2,7.640979]
[1726578412690,2.3871,2323.6,2323.3,4.30414]
[1726578412899,2.3871,2323.6,2323.4,3.336589]
[1726578414209,2.3871,2323.6,2323.4,1.54015079]
[1726578414210,6.69078,2323.6,2323.4,1.54015079]
[1726578414504,2.4625,2323.5,2323.4,1.54015079]
[1726578416302,6.7664,2323.5,2323.2,1.54015079]
[1726578416873,2.4625,2323.5,2323.2,5.84454079]
[1726578419581,6.76636,2323.5,2323.2,1.54015079]
[1726578420922,2.4625,2323.5,2323.4,1.54015079]
[1726578421216,6.76635,2323.5,2323.4,1.54015079]
[1726578423526,2.4625,2323.5,2323.4,1.54015079]
[1726578424021,6.57258,2323.7,2323.4,1.54015079]
[1726578424178,6.57258,2323.7,2323.6,1.54015079]
[1726578424381,7.960168,2323.7,2323.6,1.54015079]
[1726578425078,3.656688,2323.7,2323.6,1.54015079]
[1726578425315,7.960168,2323.7,2323.6,1.54015079]
[1726578425518,7.960168,2323.7,2323.4,1.54015079]
[1726578426194,6.57258,2323.7,2323.6,1.54015079]
[1726578426395,2.2691,2323.7,2323.6,1.54015079]
[1726578428701,6.57258,2323.7,2323.6,1.54015079]
[1726578429086,2.2691,2323.7,2323.6,1.54015079]
[1726578429505,6.59454,2323.9,2323.6,1.54015079]
[1726578429749,4.30336,2323.8,2323.6,1.54015079]
[1726578431738,6.77508,2323.7,2323.4,1.54015079]
[1726578435206,11.07874,2323.7,2323.4,1.54015079]
[1726578435411,4.30369,2323.6,2323.4,1.54015079]
[1726578435612,11.07868,2323.7,2323.4,1.54015079]
[1726578435845,7.34778768,2323.7,2323.4,1.54015079]
[1726578436155,7.34778768,2323.7,2323.6,1.54015079]
[1726578436313,6.77508,2323.7,2323.6,1.54015079]
[1726578436508,2.4716,2323.7,2323.6,1.54015079]
[1726578437271,6.63634,2324.1,2323.7,4.30337]